bitfinex-derivatives/quotes_ETHF0:USTF0_20250624
["timestamp","ask_amount","ask_price","bid_price","bid_amount"]
[1750778450386,1.51921,2432.4,2432.3,0.82182]
[1750778451391,0.82182,2432.3,2432.2,4.02963]
[1750778451588,0.6974,2432.4,2432.0,0.82187]
[1750778451589,0.82192,2432.1,2432.0,0.82187]
[1750778451789,0.82187,2432.2,2432.1,0.82185]
[1750778453193,0.82192,2432.1,2432.0,0.8219]
[1750778453790,0.82197,2432.0,2431.9,0.82195]
[1750778454100,0.82197,2432.0,2431.1,5.72688014]
[1750778454101,0.82212,2431.4,2431.3,3.2078]
[1750778454388,2.0554,2431.3,2430.8,2.6779]
[1750778454595,0.82226,2431.0,2430.9,0.82229]
[1750778454790,0.82225,2431.1,2431.0,0.82226]
[1750778454991,0.82221,2431.2,2431.1,0.82223]
[1750778455187,0.82224,2431.1,2430.8,2.6779]
[1750778455387,0.82224,2431.1,2430.9,0.82226]
[1750778455583,5.80512365,2431.0,2430.9,0.82229]
[1750778455791,6.62741365,2431.0,2430.9,0.82229]
[1750778456697,0.8223,2430.9,2430.8,0.8223]
[1750778456882,0.82228,2431.0,2430.9,0.82227]
[1750778457487,0.82231,2430.9,2430.8,0.82231]
[1750778457684,0.82234,2430.8,2430.7,0.82234]
[1750778458193,2.05574,2430.9,2430.4,0.24264749]
[1750778458392,0.82243,2430.6,2430.5,0.82242]
[1750778458996,0.82243,2430.6,2430.4,0.24264749]
[1750778458997,0.82243,2430.5,2430.4,1.06508749]
[1750778459589,0.82243,2430.5,2430.4,0.24264749]
[1750778460393,4.03023,2430.5,2430.4,0.24264749]
[1750778460595,0.82261,2430.0,2429.7,3.2078]
[1750778460793,0.82265,2429.9,2429.8,0.82264]
[1750778461096,0.82267,2429.8,2429.7,4.03047]
[1750778461499,0.82267,2429.8,2429.7,0.82267]
[1750778461695,0.82277,2429.6,2429.5,0.82275]
[1750778461994,0.6986,2429.9,2429.8,0.82267]
[1750778462195,1.4094,2430.6,2429.6,9.01292365]
[1750778462398,1.4094,2430.6,2430.5,0.82243]
[1750778462399,0.6986,2430.6,2430.5,0.82243]
[1750778462700,7.088,2430.7,2430.3,2.05623]
[1750778463000,7.91038,2430.7,2430.6,0.8224]
[1750778463189,7.088,2430.7,2430.6,0.8224]
[1750778463699,7.91036,2430.7,2430.6,0.8224]
[1750778464497,7.088,2430.7,2430.6,0.8861515]
[1750778466193,2.94454,2431.1,2431.0,0.82226]
[1750778466194,0.7129,2431.1,2431.0,0.82226]
[1750778466594,7.91119,2431.2,2431.1,0.82223]
[1750778466903,7.91119,2431.2,2430.9,2.05574]
[1750778466904,0.82229,2431.0,2430.9,0.82228]
[1750778467102,0.82232,2430.9,2430.8,0.82231]
[1750778467301,1.48362,2430.9,2430.8,0.82231]
[1750778467602,0.82236,2430.7,2430.6,0.0637515]
[1750778467794,6.62748365,2430.7,2430.6,0.0637515]
[1750778467992,11.62748365,2430.7,2430.6,0.0637515]
[1750778468292,0.82255,2430.2,2430.1,0.82257]
[1750778468489,7.089,2430.3,2430.2,0.82252]
[1750778468692,7.91153,2430.3,2430.2,0.82252]
[1750778469804,7.089,2430.3,2430.2,0.82252]
[1750778470108,0.82248,2430.5,2430.4,0.82245]
[1750778470296,0.82242,2430.6,2430.5,0.8224]
[1750778471503,0.82246,2430.5,2430.4,0.82244]
[1750778473601,0.82243,2430.6,2430.5,0.82241]
[1750778473800,0.82246,2430.5,2430.4,0.82244]
[1750778473993,0.82246,2430.4,2430.3,1.3114]
[1750778474193,0.82246,2430.4,2430.3,2.13388]
[1750778474405,7.068,2430.6,2430.0,1.3749]
[1750778474600,7.89042,2430.6,2430.5,0.82243]
[1750778475202,7.068,2430.6,2430.5,0.82243]
[1750778475699,0.82246,2430.5,2430.4,0.82244]
[1750778476293,0.82253,2430.3,2430.2,0.82251]
[1750778476605,5.36236,2430.5,2430.3,0.82248]
[1750778477505,0.82249,2430.4,2430.3,0.82247]
[1750778477900,3.2078,2430.5,2430.4,0.82246]
[1750778478605,4.03023,2430.5,2430.4,0.82246]
[1750778479703,3.2078,2430.5,2430.4,0.8862115]
[1750778480103,4.03023,2430.5,2430.4,0.8862115]
[1750778480603,7.068,2430.6,2430.5,0.82243]
[1750778480800,7.89042,2430.6,2430.5,0.82243]
[1750778481107,7.068,2430.6,2430.5,0.82243]
[1750778481606,7.8904,2430.6,2430.5,2.25363]
[1750778481911,7.8904,2430.6,2430.5,0.82243]
[1750778482103,0.82243,2430.5,2430.4,0.8861915]
[1750778482411,0.82243,2430.5,2430.4,0.0637515]
[1750778482907,4.03023,2430.5,2430.4,0.8862115]
[1750778483207,4.03023,2430.5,2430.4,0.0637515]
[1750778483396,4.03023,2430.5,2430.4,0.8862115]
[1750778483704,3.2078,2430.5,2430.4,0.8862115]
[1750778484101,4.03023,2430.5,2430.4,0.8862115]
[1750778486907,3.2078,2430.5,2430.4,0.8862115]
[1750778487207,0.82243,2430.5,2430.4,0.0637515]
[1750778487402,6.62755365,2430.5,2430.4,0.0637515]
[1750778487608,8.00775365,2430.5,2430.4,0.0637515]
[1750778488006,8.00775365,2430.5,2430.4,0.8862115]
[1750778488202,0.82243,2430.5,2430.4,0.8862115]
[1750778488606,0.82243,2430.5,2430.4,0.0637515]
[1750778488806,0.82243,2430.5,2430.4,0.8862115]
[1750778490013,0.82243,2430.5,2430.4,0.0637515]
[1750778490311,0.82243,2430.5,2430.4,0.8862115]
[1750778490616,0.82243,2430.5,2430.4,0.0637515]
[1750778490910,2.05613,2430.5,2430.1,2.44799966]
[1750778491105,0.82257,2430.1,2430.0,2.44799966]
[1750778491512,0.90077,2430.1,2430.0,2.44799966]
[1750778491706,0.8226,2430.0,2429.9,3.27060966]
[1750778492612,0.8226,2430.0,2429.9,2.44799966]
[1750778493012,0.8226,2430.0,2429.9,3.27062966]
[1750778493211,0.8226,2430.0,2429.9,2.44799966]
[1750778493415,5.26435,2430.0,2429.6,3.27071966]
[1750778493712,0.8227,2429.7,2429.6,3.27071966]
[1750778493905,0.8227,2429.7,2429.6,0.82272]
[1750778494209,0.82274,2429.6,2429.5,2.44799966]
[1750778494411,0.82277,2429.5,2429.4,2.44799966]
[1750778494611,0.8228,2429.5,2429.4,0.82278]
[1750778494811,0.8228,2429.4,2429.3,5.25730966]
[1750778496116,0.8228,2429.4,2429.3,2.80934]
[1750778496318,0.82279,2429.5,2429.4,0.82277]
[1750778496519,0.7187,2429.6,2429.5,0.82277]
[1750778496520,1.54145,2429.6,2429.5,0.82277]
[1750778496909,0.7187,2429.6,2429.3,0.6807]
[1750778497109,0.8228,2429.4,2429.3,1.50352]
[1750778497424,0.8228,2429.4,2429.3,0.82282]
[1750778498919,0.8228,2429.5,2429.4,0.82278]
[1750778499812,0.7187,2429.6,2429.1,3.27086966]
[1750778499813,0.82287,2429.2,2429.1,3.27086966]
[1750778500008,0.82287,2429.2,2429.1,0.82287]
[1750778500714,3.2078,2429.3,2429.2,0.82287]
[1750778501714,3.2078,2429.3,2429.2,2.14767]
[1750778501914,4.03064,2429.3,2429.2,2.14767]
[1750778502115,3.2078,2429.3,2429.2,2.14767]
[1750778504015,0.2683,2429.5,2429.4,0.8228]
[1750778504218,0.2683,2429.5,2429.4,4.0306]
[1750778504516,0.103,2429.7,2429.4,4.0306]
[1750778504517,0.103,2429.7,2429.6,0.82274]
[1750778504921,0.0956,2429.8,2429.7,0.8227]
[1750778505327,0.8226,2430.0,2429.9,0.82264]
[1750778505515,0.0782,2430.1,2430.0,0.8226]
[1750778505516,0.90079,2430.1,2430.0,0.8226]
[1750778505716,7.94979,2430.1,2430.0,0.8226]
[1750778506017,0.0782,2430.1,2430.0,0.8226]
[1750778506617,0.0782,2430.1,2430.0,2.1659]
[1750778506917,0.90077,2430.1,2430.0,1.3433]
[1750778507921,0.0782,2430.1,2430.0,2.1659]
[1750778508322,0.0782,2430.1,2430.0,0.8226]
[1750778508522,0.90077,2430.1,2430.0,0.8226]
[1750778510016,0.0782,2430.1,2430.0,0.8226]
[1750778510319,0.0782,2430.1,2430.0,0.8863515]
[1750778511130,0.0782,2430.1,2430.0,9.0941515]
[1750778511418,0.0782,2430.1,2430.0,9.7785515]
[1750778511618,0.0782,2430.1,2430.0,6.5707515]
[1750778511827,0.0782,2430.1,2430.0,7.9764515]
[1750778512122,0.0782,2430.1,2430.0,13.63935374]
[1750778512728,0.0782,2430.1,2430.0,8.63935374]
[1750778512921,0.0782,2430.1,2430.0,5.43155374]
[1750778513124,0.90077,2430.1,2430.0,2.9764515]
[1750778513323,0.0782,2430.1,2430.0,2.9764515]
[1750778513517,0.90077,2430.1,2430.0,2.9764515]
[1750778513827,0.90077,2430.1,2430.0,2.1538515]
[1750778514022,0.90077,2430.1,2430.0,0.0637515]
[1750778514419,1.57087,2430.1,2430.0,0.0637515]
[1750778515223,0.8227,2429.7,2429.6,2.45510224]
[1750778515530,0.82279,2429.5,2429.4,0.82278]
[1750778516322,0.82277,2429.5,2429.4,0.82278]
[1750778516631,0.8227,2429.8,2429.7,0.82268]
[1750778516832,0.82274,2429.7,2429.6,0.82271]
[1750778517722,0.82274,2429.6,2429.5,2.18525]
[1750778518123,0.82272,2429.7,2429.6,0.82271]
[1750778519625,0.82274,2429.6,2429.5,2.18524]
[1750778520236,10.2558,2429.9,2429.5,1.3625]
[1750778520426,4.03046,2429.9,2429.8,0.82267]
[1750778521328,0.3961,2430.3,2429.9,2.0566]
[1750778521531,1.21862,2430.3,2430.2,0.82253]
[1750778521738,0.3961,2430.3,2430.2,0.82253]
[1750778522032,0.9181,2430.3,2430.2,0.82253]
[1750778522535,0.9181,2430.3,2430.2,1.3696]
[1750778522731,0.9181,2430.3,2430.2,2.19213]
[1750778523932,0.9181,2430.3,2430.2,1.3696]
[1750778524127,0.1727,2430.3,2430.1,1.51856]
[1750778524335,0.82257,2430.1,2430.0,0.8863415]
[1750778524536,0.8226,2430.1,2430.0,0.82258]
[1750778525234,0.8226,2430.0,2429.9,2.45650787]
[1750778525436,0.8226,2430.0,2429.9,3.27914787]
[1750778525629,0.8226,2430.0,2429.9,2.45650787]
[1750778525831,0.82264,2429.9,2429.8,5.34475787]
[1750778526030,0.82263,2430.0,2429.9,0.82259]
[1750778526223,0.82263,2430.0,2429.9,2.18659]
[1750778526429,0.82263,2430.0,2429.9,1.364]
[1750778526634,0.82263,2429.9,2429.8,2.45650787]
[1750778526839,0.82267,2429.8,2429.7,3.27919787]
[1750778528548,7.87061,2430.1,2430.0,0.82257]
[1750778528853,7.87061,2430.1,2429.7,5.26455]
[1750778528854,0.8226,2430.0,2429.9,3.28046919]
[1750778529444,0.2678,2430.2,2430.1,0.82257]
[1750778529648,0.2678,2430.2,2430.1,3.28043007]
[1750778529951,0.2052,2430.3,2430.2,0.82253]
[1750778530151,0.2052,2430.3,2430.2,3.28030028]
[1750778530448,0.0771,2430.3,2430.2,0.82253]
[1750778530650,0.0771,2430.3,2430.2,0.8862815]
[1750778531245,0.0771,2430.3,2430.2,7.2565815]
[1750778532653,0.0771,2430.3,2430.2,2.2565815]
[1750778534146,0.8996,2430.3,2430.2,2.2565815]
[1750778534649,0.8996,2430.3,2430.2,3.34635268]
[1750778535157,0.0771,2430.3,2430.2,3.34635268]
[1750778535453,0.0771,2430.3,2430.2,0.8862815]
[1750778536053,0.0771,2430.3,2430.2,5.8862815]
[1750778536358,0.0771,2430.3,2430.2,9.16162533]
[1750778537158,0.0771,2430.3,2430.2,5.8862815]
[1750778537651,0.0771,2430.3,2430.2,7.2995815]
[1750778537847,3.2078,2431.4,2430.4,4.11222]
[1750778538061,0.82217,2431.3,2431.2,0.82218]
[1750778538244,3.2078,2431.4,2431.2,0.82218]
[1750778538451,3.2078,2431.4,2431.3,0.82216]
[1750778539357,3.2078,2431.4,2431.0,3.46896]
[1750778539358,0.82217,2431.3,2431.2,0.82217]
[1750778539955,0.82222,2431.2,2431.1,0.8222]
[1750778540256,0.82219,2431.3,2431.2,0.82216]
[1750778540647,3.2078,2431.4,2431.1,0.82221]
[1750778540648,0.82223,2431.2,2431.1,0.82221]
[1750778540843,2.05495,2431.9,2431.2,0.0637515]
[1750778541052,0.82207,2431.6,2431.5,0.82207]
[1750778541458,0.82196,2431.9,2431.7,0.822]
[1750778541658,4.73585,2432.0,2431.5,2.05524]
[1750778541956,0.82197,2431.9,2431.8,0.82197]
[1750778542355,3.9139,2432.0,2431.6,1.3385]
[1750778542356,3.9139,2432.0,2431.9,0.82196]
[1750778542557,4.73582,2432.0,2431.9,0.82196]
[1750778542759,0.82197,2431.9,2431.8,0.82197]
[1750778543148,4.73586,2432.0,2431.9,0.82196]
[1750778543462,4.73585,2432.0,2431.9,0.82196]
[1750778543657,3.9139,2432.0,2431.6,1.3385]
[1750778543845,3.9139,2432.0,2431.9,0.82196]
[1750778544046,0.82186,2432.3,2432.2,0.82186]
[1750778544254,0.82181,2432.4,2432.3,0.82182]
[1750778544457,2.14437,2432.5,2432.4,0.82179]
[1750778544654,1.3226,2432.5,2432.4,0.82179]
[1750778544954,0.6623,2432.5,2432.4,0.82179]
[1750778546564,0.82182,2432.3,2432.2,0.82184]
[1750778546859,0.82181,2432.4,2432.3,0.82181]
[1750778547657,0.82181,2432.4,2431.9,3.2078]
[1750778547658,0.82192,2432.0,2431.9,3.2078]
[1750778547853,0.82195,2432.0,2431.9,0.82193]
[1750778548162,4.02972,2432.1,2432.0,0.82192]
[1750778548353,0.82195,2432.0,2431.9,0.82193]
[1750778548764,0.822,2431.9,2431.8,0.82198]
[1750778549362,0.82194,2432.0,2431.9,0.82193]
[1750778549562,4.02972,2432.1,2432.0,0.82193]
[1750778550154,3.2078,2432.1,2431.6,3.45604]
[1750778550461,0.82194,2432.0,2431.9,0.82193]
[1750778551057,7.019,2432.2,2432.0,0.82193]
[1750778551259,0.7225,2432.3,2432.2,0.82186]
[1750778552365,3.8701,2432.5,2432.4,0.82179]
[1750778552564,0.82182,2432.4,2432.3,0.82179]
[1750778552964,4.69188,2432.5,2432.4,0.82179]
[1750778553962,3.8701,2432.5,2432.4,0.82179]
[1750778554161,4.69186,2432.5,2432.4,0.82179]
[1750778554357,0.82186,2432.3,2432.2,0.82183]
[1750778554563,0.82182,2432.4,2432.3,0.8218]
[1750778555263,0.82184,2432.3,2432.2,0.82183]
[1750778555661,0.82181,2432.4,2432.3,0.82179]
[1750778556562,11.02312365,2432.5,2431.8,2.05497]
[1750778556752,2.05482,2432.0,2431.4,2.119]
[1750778557065,3.2078,2431.7,2430.9,5.93263]
[1750778557265,3.2078,2431.3,2431.2,0.8222]
[1750778557653,5.1907,2431.6,2431.2,0.8222]
[1750778557867,5.1907,2431.6,2431.4,0.82212]
[1750778558068,0.82212,2431.5,2431.4,0.82212]
[1750778558269,0.82214,2431.4,2431.3,0.82214]
[1750778558869,1.3188,2431.5,2431.4,0.82213]
[1750778562473,0.7092,2431.9,2431.8,0.82199]
[1750778562674,8.418,2431.9,2431.8,0.82199]
[1750778562871,8.3234,2432.3,2432.2,0.82186]
[1750778563075,10.54862,2432.3,2432.2,0.82186]
[1750778563272,9.7268,2432.3,2432.2,0.82186]
[1750778563575,8.3974,2432.3,2432.2,0.82186]
[1750778564171,1.4034,2432.3,2432.2,0.82186]
[1750778564773,4.5372,2432.7,2432.3,2.05457]
[1750778564971,6.73011,2432.7,2432.6,0.82172]
[1750778565172,4.579,2432.7,2432.6,0.82172]
[1750778565373,1.3712,2432.7,2432.6,0.82172]
[1750778565768,6.994,2432.8,2432.7,0.82169]
[1750778566074,3.2078,2433.0,2432.9,0.82162]
[1750778566280,3.2078,2433.3,2433.0,2.05398]
[1750778566479,33.6095,2433.7,2433.0,2.05398]
[1750778566480,3.2078,2433.6,2433.1,2.05389]
[1750778566681,7.6495,2433.7,2433.6,0.82139]
[1750778567274,3.9235,2433.9,2433.8,0.82132]
[1750778567275,3.2078,2433.9,2433.8,0.82132]
[1750778568376,0.82133,2433.8,2433.4,1.4031]
[1750778568681,0.82133,2433.8,2433.5,0.8214]
[1750778569274,0.82135,2433.7,2433.5,0.8214]
[1750778569979,0.82139,2433.6,2433.4,2.22453]
[1750778570280,0.82138,2433.7,2433.5,0.82141]
[1750778570873,0.82139,2433.6,2433.5,0.82141]
[1750778571079,0.82138,2433.7,2433.5,0.82141]
[1750778571579,0.82139,2433.6,2433.4,2.22453]
[1750778571973,3.2078,2433.8,2433.5,0.82141]
[1750778572172,0.82137,2433.7,2433.6,0.82138]
[1750778572371,4.02912,2433.8,2433.7,0.82135]
[1750778572681,4.02912,2433.8,2433.5,0.82141]
[1750778572682,0.8214,2433.6,2433.5,0.82141]
[1750778573574,0.82142,2433.5,2433.4,2.22453]
[1750778573776,0.82149,2433.4,2433.2,0.6629]
[1750778573984,0.82149,2433.4,2433.3,0.82148]
[1750778574175,0.82149,2433.4,2433.3,2.26148]
[1750778574484,0.82149,2433.4,2433.3,1.44]
[1750778575689,2.05357,2433.5,2433.0,3.2078]
[1750778575882,0.82159,2433.1,2433.0,0.82156]
[1750778576478,0.82166,2432.8,2432.7,0.82165]
[1750778576676,0.82164,2432.9,2432.8,0.82162]
[1750778577183,0.82164,2432.9,2432.8,2.24232]
[1750778577682,0.82164,2432.9,2432.7,3.2078]
[1750778577683,0.82166,2432.8,2432.7,0.82167]
[1750778577883,0.82169,2432.8,2432.7,0.82167]
[1750778578087,0.82172,2432.7,2432.6,0.8217]
[1750778579683,3.2078,2433.1,2432.5,3.47509]
[1750778579984,0.82165,2432.9,2432.8,0.82163]
[1750778580379,0.82167,2432.9,2432.8,0.82163]
[1750778580979,0.8216,2433.0,2432.9,0.82161]
[1750778581180,3.2078,2433.1,2433.0,0.82159]
[1750778581381,3.2078,2433.4,2432.9,2.05406]
[1750778581684,8.3746,2433.6,2433.5,0.82142]
[1750778582181,0.82143,2433.5,2433.4,0.82143]
[1750778582483,9.19601,2433.6,2433.5,0.82142]
[1750778583384,0.82145,2433.5,2433.4,0.82143]
[1750778583580,9.19601,2433.6,2433.5,0.82142]
[1750778583781,8.47361,2433.6,2433.5,0.82142]
[1750778583975,5.26095,2434.0,2433.4,5.26141]
[1750778584177,7.81233,2433.8,2433.7,0.82132]
[1750778584378,0.8213,2433.9,2433.8,0.82128]
[1750778584984,0.658,2434.0,2433.5,1.3317]
[1750778585189,0.82139,2433.6,2433.5,2.1531]
[1750778585385,0.82134,2433.8,2433.7,0.82135]
[1750778585580,0.82131,2433.9,2433.8,0.82129]
[1750778585981,3.2078,2434.5,2433.8,5.0]
[1750778586189,3.2078,2434.5,2434.0,3.2078]
[1750778586488,0.8211,2434.5,2434.4,0.82109]
[1750778587385,0.82113,2434.4,2434.3,0.82112]
[1750778587580,0.7197,2434.7,2434.2,0.82115]
[1750778587581,0.82117,2434.3,2434.2,0.82115]
[1750778587784,0.82111,2434.5,2434.4,0.82107]
[1750778588189,0.82107,2434.6,2434.5,0.82105]
[1750778588687,3.2078,2434.8,2434.3,3.2078]
[1750778588891,0.82103,2434.7,2434.6,0.82103]
[1750778589280,0.8211,2434.5,2434.4,0.82109]
[1750778590280,0.82112,2434.4,2434.3,2.23493]
[1750778590476,0.82112,2434.4,2434.3,1.4138]
[1750778590681,0.82117,2434.3,2434.0,3.2078]
[1750778590881,0.82113,2434.4,2434.3,0.82112]
[1750778591587,0.82107,2434.6,2434.5,0.82104]
[1750778591793,0.82104,2434.7,2434.6,0.82103]
[1750778592090,0.82107,2434.6,2434.5,0.82106]
[1750778592290,0.82104,2434.7,2434.6,0.82101]
[1750778592485,4.0288,2434.8,2434.7,0.82101]
[1750778592794,0.82094,2435.0,2434.9,0.82092]
[1750778592991,0.82094,2435.0,2434.6,2.05261]
[1750778592992,0.82091,2435.1,2435.0,0.82088]
[1750778593391,0.82087,2435.2,2435.1,0.82084]
[1750778593592,4.0286,2435.4,2435.3,0.82081]
[1750778593799,0.82083,2435.3,2435.2,0.82082]
[1750778594189,0.82082,2435.3,2435.2,0.82082]
[1750778594392,1.3574,2435.5,2435.1,3.2078]
[1750778594587,5.25956,2435.7,2435.2,0.8208]
[1750778594794,0.82078,2435.5,2435.4,0.82076]
[1750778595187,0.82074,2435.6,2435.5,0.82073]
[1750778595389,0.82071,2435.6,2435.5,0.82073]
[1750778595793,0.82079,2435.4,2435.3,0.82078]
[1750778595997,0.82077,2435.5,2435.4,0.82075]
[1750778596198,4.02851,2435.7,2435.6,0.82071]
[1750778596496,3.2078,2435.7,2435.6,0.82071]
[1750778596689,2.05103,2436.5,2435.6,10.1738]
[1750778596994,2.05128,2436.2,2435.7,0.82068]
[1750778597299,9.01292365,2436.3,2435.6,3.2078]
[1750778597300,3.2078,2436.3,2435.6,5.25956]
[1750778597495,3.2078,2436.3,2436.2,0.82051]
[1750778597689,3.2078,2436.3,2435.6,3.2078]
[1750778597899,0.82061,2436.0,2435.8,0.82063]
[1750778598208,7.20082365,2436.2,2435.9,0.82061]
[1750778598209,1.3957,2436.2,2435.9,0.82061]
[1750778598395,0.82056,2436.1,2435.9,0.82061]
[1750778598789,0.82056,2436.1,2436.0,0.82058]
[1750778598991,10.1738,2436.3,2436.2,0.82051]
[1750778599193,3.2078,2436.3,2436.2,0.82051]
[1750778600498,1.48737,2436.6,2436.5,0.82041]
[1750778600697,0.667,2436.6,2436.5,0.82041]
[1750778600899,0.667,2436.6,2436.2,1.3287]
[1750778601402,0.82048,2436.3,2436.2,2.14918]
[1750778601606,0.667,2436.6,2436.2,1.3287]
[1750778601799,0.82044,2436.5,2436.4,0.82043]
[1750778602393,0.82043,2436.5,2436.4,0.82042]
[1750778603199,1.48739,2436.6,2436.5,0.82041]
[1750778603395,0.667,2436.6,2436.5,0.82041]
[1750778603796,3.2078,2436.8,2436.7,0.82034]
[1750778604801,3.2078,2436.8,2436.2,2.0121]
[1750778605008,0.82043,2436.5,2436.4,0.82042]
[1750778605197,0.82039,2436.6,2436.5,0.82037]
[1750778605712,0.82039,2436.6,2436.2,4.06337]
[1750778605713,0.82044,2436.5,2436.4,0.82042]
[1750778605907,0.8204,2436.6,2436.5,0.82038]
[1750778607194,0.82044,2436.5,2436.4,0.82042]
[1750778608104,0.82044,2436.5,2436.1,0.82052]
[1750778608105,0.82055,2436.2,2436.1,0.82052]
[1750778609003,1.5077,2436.3,2436.2,0.82051]
[1750778609202,0.6872,2436.3,2436.2,0.82051]
[1750778609505,0.6872,2436.3,2436.0,2.05143]
[1750778609506,0.82039,2436.6,2436.5,0.82041]
[1750778609706,0.82037,2436.7,2436.6,0.82034]
[1750778610302,0.82045,2436.5,2436.4,0.82042]
[1750778611704,0.8204,2436.6,2436.5,0.82037]
[1750778612205,4.02818,2436.7,2436.6,0.82037]
[1750778612407,3.2078,2436.7,2436.6,0.82037]
[1750778612599,1.3209,2436.9,2436.8,0.82031]
[1750778612801,10.1698,2437.0,2436.9,0.82027]
[1750778613197,10.1698,2437.0,2436.8,0.82028]
[1750778613404,10.99006,2437.0,2436.9,0.82027]
[1750778614105,0.82034,2436.8,2436.7,0.82031]
[1750778614417,0.8203,2436.9,2436.8,0.82027]
[1750778615108,11.5858,2437.0,2436.6,2.05092]
[1750778615109,10.1698,2437.0,2436.9,0.82027]
[1750778615606,10.99004,2437.0,2436.9,0.82027]
[1750778615813,10.1698,2437.0,2436.9,0.82027]
[1750778616611,1.3672,2437.1,2437.0,0.82024]
[1750778617414,0.6505,2437.4,2437.3,0.82014]
[1750778618408,0.6796,2437.6,2437.5,0.82007]
[1750778618610,0.6796,2437.6,2436.8,9.90662365]
[1750778618611,0.8202,2437.2,2436.8,3.2078]
[1750778618805,0.82021,2437.1,2437.0,0.82022]
[1750778618999,0.8202,2437.2,2437.0,0.82022]
[1750778619313,3.2078,2437.3,2437.2,0.82017]
[1750778619810,3.2078,2437.3,2436.8,6.65864]
[1750778619811,0.8201,2437.5,2437.4,0.8201]
[1750778620199,10.8484,2437.6,2437.4,0.82008]
[1750778620409,0.82003,2437.7,2437.2,4.10083]
[1750778620717,0.82003,2437.7,2437.6,0.82003]
[1750778621011,0.82001,2437.7,2437.6,0.82001]
[1750778621508,0.6505,2437.8,2437.4,0.82008]
[1750778621509,0.82008,2437.5,2437.4,0.82008]
[1750778621705,0.6505,2437.8,2437.3,1.3026]
[1750778621706,0.82002,2437.7,2437.6,0.82001]
[1750778621906,0.82005,2437.6,2437.5,0.82005]
[1750778622109,0.82009,2437.5,2437.4,0.82009]
[1750778622307,0.82003,2437.7,2437.6,0.82002]
[1750778622509,1.47049,2437.8,2437.7,0.82]
[1750778623104,0.6505,2437.8,2437.7,0.82]
[1750778623407,0.81994,2437.9,2437.8,0.81994]
[1750778624304,0.82004,2437.7,2437.6,0.82003]
[1750778625011,5.80512365,2437.7,2437.2,2.05041]
[1750778625213,5.80512365,2437.7,2437.6,0.82001]
[1750778625214,0.82003,2437.7,2437.6,0.82001]
[1750778627315,4.02777,2437.9,2437.8,0.81997]
[1750778627811,0.6949,2438.0,2437.9,0.81994]
[1750778628512,1.5148,2438.0,2437.9,0.81994]
[1750778628809,1.5148,2438.0,2437.6,2.0501]
[1750778628810,0.82003,2437.7,2437.6,0.82]
[1750778629313,0.82,2437.8,2437.7,0.81997]
[1750778629714,0.82004,2437.7,2437.6,0.82002]
[1750778629911,0.8201,2437.5,2437.4,0.82007]
[1750778630105,2.13193,2437.7,2437.6,0.82004]
[1750778630304,0.82,2437.8,2437.7,0.81997]
[1750778631006,4.02776,2437.9,2437.8,0.81997]
[1750778631209,3.2078,2437.9,2437.8,0.81997]
[1750778631814,0.6949,2438.0,2437.9,0.81994]
[1750778632614,1.5148,2438.0,2437.9,0.81994]
[1750778633812,0.82004,2437.6,2437.5,1.47556]
[1750778634010,5.2734,2438.0,2437.4,0.7123]
[1750778634211,0.81996,2437.9,2437.8,0.81994]
[1750778634913,4.72263,2438.0,2437.9,0.81994]
[1750778635115,3.9027,2438.0,2437.9,0.81994]
[1750778635514,1.53209,2438.1,2438.0,0.8199]
[1750778635824,0.7122,2438.1,2437.8,2.0978]
[1750778636014,5.25757,2438.0,2437.4,5.97034]
[1750778636215,0.82005,2437.7,2437.6,0.82002]
[1750778636719,7.6512,2438.1,2437.4,4.5943]
[1750778636922,8.47109,2438.1,2438.0,0.8199]
[1750778637322,0.81994,2438.0,2437.9,0.81991]
[1750778637923,1.53209,2438.1,2438.0,0.8199]
[1750778639120,1.53209,2438.1,2437.8,3.47349]
[1750778639121,0.81994,2438.0,2437.9,0.81992]
[1750778639327,0.81994,2437.9,2437.8,0.81996]
[1750778640426,1.49963,2438.0,2437.9,0.81994]
[1750778640727,0.81999,2437.9,2437.8,0.81994]
[1750778641330,0.6797,2438.0,2437.9,0.81994]
[1750778641331,1.49963,2438.0,2437.9,0.81994]
[1750778641625,1.5321,2438.1,2438.0,0.8199]
[1750778642521,0.8199,2438.1,2438.0,0.8199]
[1750778643019,4.02762,2438.3,2438.2,0.81984]
[1750778643241,2.25218,2438.4,2438.3,0.8198]
[1750778643925,0.81978,2438.4,2438.3,0.8198]
[1750778644322,0.81981,2438.3,2438.2,0.8198]
[1750778644624,0.81979,2438.4,2438.3,0.81978]
[1750778644820,5.25706,2438.6,2438.1,6.938]
[1750778644821,0.81982,2438.3,2438.2,0.81981]
[1750778645220,0.81984,2438.2,2438.1,9.09685]
[1750778645421,0.81983,2438.3,2438.2,0.81981]
[1750778645828,0.81984,2438.2,2438.1,9.09685]
[1750778646126,0.81984,2438.2,2438.1,2.15885]
[1750778646320,0.81987,2438.1,2438.0,8.47988]
[1750778646727,0.81987,2438.1,2438.0,2.88088]
[1750778647023,0.81987,2438.1,2438.0,0.722]
[1750778647330,0.8199,2438.0,2437.9,0.81994]
[1750778647524,0.81994,2437.9,2437.8,2.43867708]
[1750778648720,0.81997,2437.8,2437.7,4.63556708]
[1750778649122,12.85507365,2437.8,2437.5,2.4484448]
[1750778649425,0.82009,2437.5,2437.4,0.82006]
[1750778649727,0.82012,2437.4,2437.3,0.8201]
[1750778650430,0.82012,2437.4,2437.2,1.3769]